fUSD/lending_fUSD_20260213
["ID","MTS","AMOUNT","RATE_DAILY","PERIOD"]
[405307900,1770972926997,1064.30176467,6.689e-05,2]
[405307904,1770972984332,151.0,6.687e-05,2]
[405307909,1770973018810,-1746.66318612,6.69e-05,2]
[405307910,1770973019034,-10000.01,6.69e-05,2]
[405307911,1770973019222,-10000.01,6.69e-05,2]
[405307912,1770973019416,-10000.01,6.69e-05,2]
[405307913,1770973019612,-10000.01,6.69e-05,2]
[405307914,1770973019809,-10000.01,6.69e-05,2]
[405307915,1770973019990,-10000.01,6.69e-05,2]
[405307916,1770973020228,-10000.01,6.69e-05,2]
[405307917,1770973020786,-10000.01,6.69e-05,2]
[405307918,1770973024602,-300.0,6.689e-05,2]
[405307919,1770973024629,-150.0,6.689e-05,2]
[405307920,1770973024659,-300.0,6.689e-05,2]
[405307921,1770973024726,-8500.01,6.69e-05,2]
[405307922,1770973027664,-500.0,6.689e-05,2]
[405307923,1770973027899,-212.6907155,6.689e-05,2]
[405307924,1770973027965,-8574.628569,6.69e-05,2]
[405307925,1770973028001,-10000.01,6.69e-05,2]
[405307926,1770973028362,-10000.01,6.69e-05,2]
[405307927,1770973028386,-10000.01,6.69e-05,2]
[405307928,1770973028503,-10000.01,6.69e-05,2]
[405307929,1770973028621,-10000.01,6.69e-05,2]
[405307930,1770973028747,-10000.01,6.69e-05,2]
[405307931,1770973028859,-10000.01,6.69e-05,2]
[405307932,1770973033726,-10000.01,6.69e-05,2]
[405307934,1770973039961,-10000.01,6.69e-05,2]
[405307935,1770973043578,-500.0,6.689e-05,2]
[405307936,1770973043609,-500.0,6.689e-05,2]
[405307937,1770973043641,-500.0,6.689e-05,2]
[405307938,1770973043675,-500.0,6.689e-05,2]
[405307939,1770973043706,-500.0,6.689e-05,2]
[405307940,1770973043737,-500.0,6.689e-05,2]
[405307941,1770973043769,-500.0,6.689e-05,2]
[405307942,1770973043802,-500.0,6.689e-05,2]
[405307943,1770973043836,-500.0,6.689e-05,2]
[405307944,1770973043869,-500.0,6.689e-05,2]
[405307945,1770973044117,-0.01,6.689e-05,2]
[405307946,1770973045501,-499.99,6.689e-05,2]
[405307947,1770973045532,-500.0,6.689e-05,2]
[405307948,1770973045562,-500.0,6.689e-05,2]
[405307949,1770973045592,-500.0,6.689e-05,2]
[405307950,1770973045621,-500.0,6.689e-05,2]
[405307951,1770973045652,-500.0,6.689e-05,2]
[405307952,1770973045682,-500.0,6.689e-05,2]
[405307953,1770973045712,-500.0,6.689e-05,2]
[405307954,1770973045741,-500.0,6.689e-05,2]
[405307955,1770973045772,-500.0,6.689e-05,2]
[405307956,1770973045872,-500.0,6.689e-05,2]
[405307957,1770973045903,-500.0,6.689e-05,2]
[405307958,1770973045934,-500.0,6.689e-05,2]
[405307959,1770973045964,-500.0,6.689e-05,2]
[405307960,1770973045994,-500.0,6.689e-05,2]
[405307961,1770973046026,-500.0,6.689e-05,2]
[405307962,1770973046056,-500.0,6.689e-05,2]
[405307963,1770973046087,-500.0,6.689e-05,2]
[405307964,1770973046117,-500.0,6.689e-05,2]
[405307965,1770973046147,-500.0,6.689e-05,2]
[405307966,1770973046261,-500.0,6.689e-05,2]
[405307967,1770973046293,-500.0,6.689e-05,2]
[405307968,1770973046329,-500.0,6.689e-05,2]
[405307969,1770973046363,-500.0,6.689e-05,2]
[405307970,1770973046398,-500.0,6.689e-05,2]
[405307971,1770973046432,-500.0,6.689e-05,2]
[405307972,1770973046463,-500.0,6.689e-05,2]
[405307973,1770973046497,-500.0,6.689e-05,2]
[405307974,1770973046528,-500.0,6.689e-05,2]
[405307975,1770973046557,-500.0,6.689e-05,2]
[405307976,1770973046821,-500.0,6.689e-05,2]
[405307977,1770973046854,-500.0,6.689e-05,2]
[405307978,1770973046884,-500.0,6.689e-05,2]
[405307979,1770973046916,-500.0,6.689e-05,2]
[405307980,1770973046947,-500.0,6.689e-05,2]
[405307981,1770973046977,-500.0,6.689e-05,2]
[405307982,1770973047007,-500.0,6.689e-05,2]
[405307983,1770973047590,-0.05,6.69e-05,2]
[405307984,1770973047605,-3000.01,6.69e-05,2]
[405307985,1770973047621,-10000.01,6.69e-05,2]
[405307986,1770973047639,-10000.01,6.69e-05,2]
[405307987,1770973047653,-10000.01,6.69e-05,2]
[405307988,1770973047679,-10000.01,6.69e-05,2]
[405307989,1770973051804,-500.0,6.59e-05,2]
[405307990,1770973051842,-9000.01,6.69e-05,2]
[405307991,1770973051890,-10000.01,6.69e-05,2]
[405307992,1770973051982,-10000.01,6.69e-05,2]
[405307993,1770973054863,-10000.01,6.69e-05,2]
[405307994,1770973054982,-10000.01,6.69e-05,2]
[405307995,1770973055099,-10000.01,6.69e-05,2]
[405307996,1770973055202,-10000.01,6.69e-05,2]
[405307997,1770973055304,-10000.01,6.69e-05,2]
[405307998,1770973055428,-10000.01,6.69e-05,2]
[405307999,1770973055538,-10000.01,6.69e-05,2]
[405308000,1770973057984,-10000.01,6.69e-05,2]
[405308001,1770973058191,-10000.01,6.69e-05,2]
[405308002,1770973058315,-10000.01,6.69e-05,2]
[405308003,1770973060956,-10000.01,6.69e-05,2]
[405308004,1770973061077,-10000.01,6.69e-05,2]
[405308005,1770973061214,-10000.01,6.69e-05,2]
[405308006,1770973061363,-10000.01,6.69e-05,2]
[405308007,1770973061476,-10000.01,6.69e-05,2]
[405308008,1770973061600,-10000.01,6.69e-05,2]
[405308009,1770973061702,-10000.01,6.69e-05,2]
[405308010,1770973064120,-361.24975585,6.59e-05,2]
[405308011,1770973064156,-9277.5104883,6.69e-05,2]
[405308012,1770973064302,-10000.01,6.69e-05,2]
[405308013,1770973067041,-594.82776212,6.689e-05,2]
[405308014,1770973067072,-594.82776212,6.689e-05,2]
[405308015,1770973067105,-594.82776212,6.689e-05,2]
[405308016,1770973067136,-594.82776212,6.689e-05,2]
[405308017,1770973067167,-594.82776212,6.689e-05,2]
[405308018,1770973067199,-594.82776212,6.689e-05,2]
[405308019,1770973067233,-594.82776212,6.689e-05,2]
[405308020,1770973067267,-594.82776212,6.689e-05,2]
[405308021,1770973067383,-594.82776212,6.689e-05,2]
[405308022,1770973067417,-594.82776212,6.689e-05,2]
[405308023,1770973067448,-594.82776212,6.689e-05,2]
[405308024,1770973067479,-594.82776212,6.689e-05,2]
[405308025,1770973067510,-594.82776212,6.689e-05,2]
[405308026,1770973067541,-594.82776212,6.689e-05,2]
[405308027,1770973067755,-482.76580608,6.69e-05,2]
[405308028,1770973067772,-2862.07685456,6.69e-05,2]
[405308029,1770973067800,-10000.01,6.69e-05,2]
[405308030,1770973067828,-10000.01,6.69e-05,2]
[405308031,1770973067844,-10000.01,6.69e-05,2]
[405308032,1770973067867,-10000.01,6.69e-05,2]
[405308033,1770973067880,-10000.01,6.69e-05,2]
[405308035,1770973072559,10000.01,6.59e-05,2]
[405308036,1770973072585,10000.01,6.59e-05,2]
[405308037,1770973072611,10000.01,6.59e-05,2]
[405308038,1770973073618,-10000.01,6.59e-05,2]
[405308039,1770973073767,-10000.01,6.59e-05,2]
[405308040,1770973073906,-10000.01,6.59e-05,2]
[405308041,1770973074118,-10000.01,6.59e-05,2]
[405308042,1770973076318,-10000.01,6.59e-05,2]
[405308043,1770973076355,-10000.01,6.59e-05,2]
[405308044,1770973076481,-10000.01,6.59e-05,2]
[405308045,1770973076579,-10000.01,6.59e-05,2]
[405308046,1770973076676,-10000.01,6.59e-05,2]
[405308047,1770973076829,-10000.01,6.59e-05,2]
[405308048,1770973079277,-10000.01,6.59e-05,2]
[405308049,1770973079399,-10000.01,6.59e-05,2]
[405308050,1770973079509,-10000.01,6.59e-05,2]
[405308051,1770973079673,-10000.01,6.59e-05,2]
[405308052,1770973082138,-10000.01,6.59e-05,2]
[405308053,1770973082245,-300.0,6.589e-05,2]
[405308054,1770973082288,-9400.01,6.59e-05,2]
[405308055,1770973082377,-10000.01,6.59e-05,2]
[405308056,1770973082476,-10000.01,6.59e-05,2]
[405308057,1770973082585,-10000.01,6.59e-05,2]
[405308058,1770973082705,-10000.01,6.59e-05,2]
[405308059,1770973084041,-5000.01,6.59e-05,2]
[405308060,1770973084248,-5000.01,6.59e-05,2]
[405308061,1770973084380,-5000.01,6.59e-05,2]
[405308062,1770973084483,-5000.01,6.59e-05,2]
[405308063,1770973084599,-5000.01,6.59e-05,2]
[405308064,1770973084734,-5000.01,6.59e-05,2]
[405308065,1770973084854,-5000.01,6.59e-05,2]
[405308066,1770973084965,-5000.01,6.59e-05,2]
[405308067,1770973085106,-5000.01,6.59e-05,2]
[405308068,1770973085159,-10000.01,6.59e-05,2]
[405308069,1770973085250,-5000.01,6.59e-05,2]
[405308070,1770973085288,-10000.01,6.59e-05,2]
[405308071,1770973085378,-10000.01,6.59e-05,2]
[405308072,1770973085493,-10000.01,6.59e-05,2]
[405308073,1770973086970,-5000.01,6.59e-05,2]
[405308074,1770973087187,-5000.01,6.59e-05,2]
[405308075,1770973087333,-5000.01,6.59e-05,2]
[405308076,1770973087445,-5000.01,6.59e-05,2]
[405308077,1770973087553,-5000.01,6.59e-05,2]
[405308078,1770973087662,-5000.01,6.59e-05,2]
[405308079,1770973087757,-5000.01,6.59e-05,2]
[405308080,1770973087871,-5000.01,6.59e-05,2]
[405308081,1770973087979,-5000.01,6.59e-05,2]
[405308082,1770973088087,-5000.01,6.59e-05,2]
[405308083,1770973088384,-10000.01,6.59e-05,2]
[405308084,1770973088555,-10000.01,6.59e-05,2]
[405308085,1770973088681,-10000.01,6.59e-05,2]
[405308086,1770973088937,-10000.01,6.59e-05,2]
[405308087,1770973089099,-10000.01,6.59e-05,2]
[405308088,1770973089227,-10000.01,6.59e-05,2]
[405308089,1770973089960,-5000.01,6.59e-05,2]
[405308090,1770973090184,-5000.01,6.59e-05,2]
[405308091,1770973090295,-5000.01,6.59e-05,2]
[405308092,1770973090399,-5000.01,6.59e-05,2]
[405308093,1770973090527,-5000.01,6.59e-05,2]
[405308094,1770973090614,-5000.01,6.59e-05,2]
[405308095,1770973090734,-5000.01,6.59e-05,2]
[405308096,1770973090839,-5000.01,6.59e-05,2]
[405308097,1770973090966,-5000.01,6.59e-05,2]
[405308098,1770973091126,-5000.01,6.59e-05,2]
[405308099,1770973091322,-10000.01,6.59e-05,2]
[405308100,1770973091437,-10000.01,6.59e-05,2]
[405308101,1770973091544,-10000.01,6.59e-05,2]
[405308102,1770973091664,-10000.01,6.59e-05,2]
[405308103,1770973095881,-5000.01,6.59e-05,2]
[405308104,1770973097361,-10000.01,6.59e-05,2]
[405308105,1770973101900,-5000.01,6.59e-05,2]
[405308106,1770973103431,-10000.01,6.59e-05,2]
[405308107,1770973105029,-5000.01,6.59e-05,2]
[405308108,1770973105294,-5000.01,6.59e-05,2]
[405308109,1770973105397,-5000.01,6.59e-05,2]
[405308110,1770973105519,-5000.01,6.59e-05,2]
[405308111,1770973105677,-5000.01,6.59e-05,2]
[405308112,1770973105811,-5000.01,6.59e-05,2]
[405308113,1770973105932,-5000.01,6.59e-05,2]
[405308114,1770973107932,-5000.01,6.59e-05,2]
[405308115,1770973111109,-180.0,6.589e-05,2]
[405308116,1770973111129,-180.0,6.59e-05,2]
[405308117,1770973111145,-4640.01,6.59e-05,2]
[405308118,1770973111225,-5000.01,6.59e-05,2]
[405308119,1770973111366,-5000.01,6.59e-05,2]
[405308120,1770973111495,-5000.01,6.59e-05,2]
[405308121,1770973111606,-5000.01,6.59e-05,2]
[405308122,1770973111729,-5000.01,6.59e-05,2]
[405308123,1770973111861,-5000.01,6.59e-05,2]
[405308124,1770973173878,1147.0489163,6.122e-05,2]
[405308125,1770973203633,300.0,6.589e-05,7]
[405308156,1770973831841,-297.04785907,6.122e-05,2]
[405308158,1770973831894,-86.20322463,6.122e-05,2]
[405308159,1770973831909,-193.0,6.122e-05,2]
[405308160,1770973831924,-118.64324806,6.122e-05,2]
[405308161,1770973831941,-131.35675194,6.122e-05,2]
[405308162,1770973831957,-204.0,6.122e-05,2]
[405308163,1770973831972,-250.0,6.134e-05,2]
[405308164,1770973831984,-195.28058908,6.137e-05,2]
[405308165,1770973831996,-224.09597312,6.183e-05,2]
[405308166,1770973832010,-225.90402688,6.183e-05,2]
[405308167,1770973832021,-1530.3,6.26e-05,2]
[405308168,1770973832033,-792.53462461,6.398e-05,2]
[405308169,1770973832055,-737.76537539,6.398e-05,2]
[405308170,1770973832075,-1484.595,6.458e-05,2]
[405308171,1770973832086,-158.643,6.458e-05,2]
[405308172,1770973832098,-300.0,6.525e-05,2]
[405308173,1770973832112,-1200.0,6.525e-05,2]
[405308174,1770973832124,-558.56224854,6.526e-05,2]
[405308175,1770973832137,-1023.31953828,6.526e-05,2]
[405308176,1770973832156,-2632.9638018,6.526e-05,2]
[405308178,1770973832168,-1678.09438079,6.526e-05,2]
[405308179,1770973832182,-387.11639996,6.526e-05,2]
[405308180,1770973832197,-2898.9649607,6.526e-05,2]
[405308181,1770973832224,-20877.80709268,6.526e-05,2]
[405308182,1770973832236,-222.0,6.533e-05,2]
[405308183,1770973832247,-300.0,6.533e-05,2]
[405308184,1770973832259,-150.0,6.534e-05,2]
[405308185,1770973832270,-9999.99,6.535e-05,2]
[405308186,1770973832282,-150.99,6.535e-05,2]
[405308187,1770973832293,-999.99,6.535e-05,2]
[405308188,1770973832306,-9999.99,6.535e-05,2]
[405308189,1770973832317,-1530.3,6.536e-05,2]
[405308190,1770973832328,-150.99,6.536e-05,2]
[405308191,1770973832339,-5912.89,6.536e-05,2]
[405308192,1770973832351,-299.99,6.536e-05,2]
[405308193,1770973832362,-499.99,6.536e-05,2]
[405308194,1770973832374,-9999.99,6.536e-05,2]
[405308195,1770973832385,-4133.15,6.536e-05,2]
[405308196,1770973832395,-9999.99,6.536e-05,2]
[405308197,1770973832407,-500.0,6.589e-05,2]
[405308198,1770973832418,-500.0,6.589e-05,2]
[405308199,1770973832431,-1530.3,6.674e-05,2]
[405308200,1770973832442,-1011.76198068,6.689e-05,2]
[405308201,1770973832454,-263.88,6.7e-05,2]
[405308202,1770973832467,-250.0,6.734e-05,2]
[405308203,1770973832477,-193.0,6.734e-05,2]
[405308204,1770973832488,-1530.3,6.812e-05,2]
[405308205,1770973832498,-1530.3,6.95e-05,2]
[405308206,1770973832509,-1530.3,7.088e-05,2]
[405308207,1770973832519,-1680.0,7.178e-05,2]
[405308208,1770973832531,-420.0,7.186e-05,2]
[405308209,1770973832545,-255.0,7.187e-05,2]
[405308210,1770973832558,-1852.42,7.209e-05,2]
[405308211,1770973832569,-922.32,7.225e-05,2]
[405308212,1770973832579,-1530.3,7.227e-05,2]
[405308213,1770973832590,-1223.59,7.334e-05,2]
[405308214,1770973832601,-1530.3,7.365e-05,2]
[405308215,1770973832611,-1530.3,7.503e-05,2]
[405308216,1770973832622,-166.66,7.59e-05,2]
[405308217,1770973832632,-1530.3,7.641e-05,2]
[405308218,1770973832644,-1530.3,7.779e-05,2]
[405308219,1770973832656,-166.66,7.841e-05,2]
[405308220,1770973832668,-2351.0,7.895e-05,2]
[405308221,1770973832681,-576.0,7.905e-05,2]
[405308222,1770973832692,-433.0,7.906e-05,2]
[405308223,1770973832703,-1530.3,7.917e-05,2]
[405308224,1770973832714,-9184.493622,7.945e-05,2]
[405308225,1770973832726,-1530.3,8.055e-05,2]
[405308226,1770973832736,-250.0,8.089e-05,2]
[405308227,1770973832748,-166.66,8.091e-05,2]
[405308228,1770973832759,-8729.966218,8.178e-05,2]
[405308229,1770973832769,-1530.3,8.193e-05,2]
[405308230,1770973832779,-150.0,8.219e-05,2]
[405308231,1770973832792,-160.03405,8.219e-05,2]
[405308232,1770973832802,-170.0681,8.219e-05,2]
[405308233,1770973832813,-180.10215,8.219e-05,2]
[405308234,1770973832824,-190.1362,8.219e-05,2]
[405308235,1770973832835,-200.17025,8.219e-05,2]
[405308236,1770973832846,-210.2043,8.219e-05,2]
[405308237,1770973832857,-220.238351,8.219e-05,2]
[405308238,1770973832870,-230.272401,8.219e-05,2]
[405308239,1770973832881,-240.306451,8.219e-05,2]
[405308240,1770973832892,-2439.41532,8.219e-05,2]
[405308241,1770973832903,-150.0,8.219e-05,2]
[405308242,1770973832913,-184.20017,8.219e-05,2]
[405308243,1770973832924,-218.400341,8.219e-05,2]
[405308244,1770973832935,-252.600511,8.219e-05,2]
[405308245,1770973832946,-286.800682,8.219e-05,2]
[405308246,1770973832957,-321.000852,8.219e-05,2]
[405308247,1770973832968,-355.201023,8.219e-05,2]
[405308248,1770973832979,-389.401193,8.219e-05,2]
[405308249,1770973832989,-423.601364,8.219e-05,2]
[405308250,1770973833000,-457.801534,8.219e-05,2]
[405308251,1770973833011,-3798.759592,8.219e-05,2]
[405308252,1770973833022,-500.0,8.219e-05,2]
[405308253,1770973833032,-341.62,8.219e-05,2]
[405308254,1770973833044,-1530.3,8.331e-05,2]
[405308255,1770973833055,-166.66,8.342e-05,2]
[405308256,1770973833067,-1530.3,8.469e-05,2]
[405308257,1770973833077,-500.0,8.493e-05,2]
[405308258,1770973833088,-251.75,8.54e-05,2]
[405308259,1770973833100,-366.28,8.54e-05,2]
[405308260,1770973833112,-402.31,8.56e-05,2]
[405308261,1770973833123,-166.66,8.592e-05,2]
[405308262,1770973833133,-1530.3,8.607e-05,2]
[405308263,1770973833144,-341.62,8.676e-05,2]
[405308264,1770973833156,-3292.0,8.685e-05,2]
[405308265,1770973833168,-736.0,8.697e-05,2]
[405308266,1770973833178,-1530.3,8.745e-05,2]
[405308267,1770973833190,-500.0,8.767e-05,2]
[405308268,1770973833200,-166.66,8.843e-05,2]
[405308269,1770973833212,-162.13764928,8.951e-05,2]
[405308270,1770973833222,-500.0,9.041e-05,2]
[405308271,1770973833233,-258.82,9.059e-05,2]
[405308272,1770973833244,-341.62,9.132e-05,2]
[405308273,1770973833255,-500.0,9.315e-05,2]
[405308274,1770973833266,-4558.511511,9.51e-05,2]
[405308275,1770973833277,-2927.298385,9.537e-05,2]
[405308276,1770973833287,-4609.0,9.553e-05,2]
[405308277,1770973833299,-1252.0,9.566e-05,2]
[405308278,1770973833310,-500.0,9.589e-05,2]
[405308279,1770973833321,-341.62,9.589e-05,2]
[405308280,1770973833331,-500.0,9.863e-05,2]
[405308281,1770973833342,-151.0,0.0001,2]
[405308282,1770973833353,-232.78327733,0.0001,2]
[405308283,1770973833363,-232.78327733,0.0001,2]
[405308284,1770973833374,-232.78327733,0.0001,2]
[405308285,1770973833386,-175.06822215,0.0001,2]
[405308286,1770973833397,-500.0,0.0001,2]
[405308287,1770973833407,-151.0,0.0001,2]
[405308288,1770973833418,-151.0,0.0001,2]
[405308289,1770973833429,-151.0,0.0001,2]
[405308290,1770973833440,-151.0,0.0001,2]
[405308291,1770973833450,-151.0,0.0001,2]
[405308292,1770973833461,-151.0,0.0001,2]
[405308293,1770973833472,-151.0,0.0001,2]
[405308294,1770973833483,-151.0,0.0001,2]
[405308295,1770973833493,-500.0,0.0001,2]
[405308296,1770973833505,-151.0,0.0001,2]
[405308297,1770973833515,-151.0,0.0001,2]
[405308298,1770973833526,-200.0,0.0001,2]
[405308299,1770973833537,-151.0,0.0001,2]
[405308300,1770973833547,-151.0,0.0001,2]
[405308301,1770973833558,-500.0,0.0001,2]
[405308302,1770973833569,-151.0,0.0001,2]
[405308303,1770973833579,-151.0,0.0001,2]
[405308304,1770973833590,-151.0,0.0001,2]
[405308305,1770973833600,-151.0,0.0001,2]
[405308306,1770973833611,-151.0,0.0001,2]
[405308307,1770973833621,-200.0,0.0001,2]
[405308308,1770973833631,-151.0,0.0001,2]
[405308309,1770973833642,-151.0,0.0001,2]
[405308310,1770973833652,-153.95643455,0.0001,2]
[405308311,1770973833663,-151.0,0.0001,2]
[405308312,1770973833680,-165.46002286,0.0001,2]
[405308313,1770973833698,-341.62,0.00010046,2]
[405308314,1770973833710,-500.0,0.00010137,2]
[405308315,1770973833721,-157.75238177,0.00010411,2]
[405308316,1770973833733,-2500.0,0.00010423,2]
[405308317,1770973833745,-878.1502,0.00010423,2]
[405308318,1770973833756,-9999.99,0.00010475,2]
[405308319,1770973833768,-341.62,0.00010502,2]
[405308320,1770973833779,-6453.0,0.00010509,2]
[405308321,1770973833791,-2129.0,0.00010526,2]
[405308322,1770973833802,-200.0,0.00010548,2]
[405308323,1770973833813,-200.0,0.00010548,2]
[405308324,1770973833824,-150.0,0.00010756,2]
[405308325,1770973833836,-200.0,0.00010756,2]
[405308326,1770973833849,-500.0,0.00010756,2]
[405308327,1770973833860,-150.0,0.00010756,2]
[405308328,1770973833872,-500.0,0.00010756,2]
[405308329,1770973833883,-500.0,0.00010756,2]
[405308330,1770973833893,-500.0,0.00010756,2]
[405308331,1770973833904,-150.0,0.00010756,2]
[405308332,1770973833915,-500.0,0.00010756,2]
[405308333,1770973833927,-500.0,0.00010756,2]
[405308334,1770973833937,-150.0,0.00010756,2]
[405308335,1770973833949,-500.0,0.00010756,2]
[405308336,1770973833960,-157.94858373,0.00010756,2]
[405308337,1770973833971,-2606.0,0.00010756,2]
[405308338,1770973833982,-158.35880626,0.00010756,2]
[405308339,1770973833992,-158.83979341,0.00010756,2]
[405308340,1770973834003,-500.0,0.00010756,2]
[405308341,1770973834014,-150.0,0.00010756,2]
[405308342,1770973834029,-265.88984898,0.00010756,2]
[405308343,1770973834040,-227.61528811,0.00010756,2]
[405308344,1770973834052,-158.86944068,0.00010756,2]
[405308345,1770973834062,-500.0,0.00010756,2]
[405308346,1770973834073,-500.0,0.00010756,2]
[405308347,1770973834084,-500.0,0.00010756,2]
[405308348,1770973834096,-150.0,0.00010756,2]
[405308349,1770973834107,-500.0,0.00010756,2]
[405308350,1770973834120,-150.0,0.00010756,2]
[405308351,1770973834131,-275.8371773,0.00010756,2]
[405308352,1770973834142,-200.0,0.00010811,2]
[405308353,1770973834155,-200.0,0.00010811,2]
[405308354,1770973834166,-500.0,0.00010811,2]
[405308355,1770973834177,-150.0,0.00010811,2]
[405308356,1770973834190,-500.0,0.00010811,2]
[405308357,1770973834200,-500.0,0.00010811,2]
[405308358,1770973834211,-500.0,0.00010811,2]
[405308359,1770973834226,-150.0,0.00010811,2]
[405308360,1770973834239,-500.0,0.00010811,2]
[405308361,1770973834250,-500.0,0.00010811,2]
[405308362,1770973834262,-163.74427011,0.00010811,2]
[405308363,1770973834274,-500.0,0.00010811,2]
[405308364,1770973834286,-2606.0,0.00010811,2]
[405308365,1770973834298,-500.0,0.00010811,2]
[405308366,1770973834310,-150.84470869,0.00010811,2]
[405308367,1770973834321,-500.0,0.00010811,2]
[405308368,1770973834332,-500.0,0.00010811,2]
[405308369,1770973834343,-500.0,0.00010811,2]
[405308370,1770973834688,-205.76325723,0.00010811,2]
[405308371,1770973834701,-500.0,0.00010811,2]
[405308372,1770973834712,-150.0,0.00010811,2]
[405308373,1770973834721,-200.0,0.00010866,2]
[405308374,1770973834730,-550.0,0.00010866,2]
[405308375,1770973834739,-354.1573711,0.00010866,2]
[405308376,1770973834749,-500.0,0.00010866,2]
[405308377,1770973834758,-500.0,0.00010866,2]
[405308378,1770973834767,-150.0,0.00010866,2]
[405308379,1770973834777,-200.99227331,0.00010866,2]
[405308380,1770973834786,-500.0,0.00010866,2]
[405308381,1770973834795,-500.0,0.00010866,2]
[405308382,1770973834804,-2606.0,0.00010866,2]
[405308383,1770973834814,-500.0,0.00010866,2]
[405308384,1770973834823,-500.0,0.00010866,2]
[405308385,1770973834832,-500.0,0.00010866,2]
[405308386,1770973834841,-500.0,0.00010866,2]
[405308387,1770973834850,-500.0,0.00010866,2]
[405308388,1770973834859,-150.0,0.00010866,2]
[405308389,1770973834868,-200.0,0.0001092,2]
[405308390,1770973834877,-500.0,0.0001092,2]
[405308391,1770973834889,-400.0,0.0001092,2]
[405308392,1770973834898,-194.23259181,0.0001092,2]
[405308393,1770973834907,-150.0,0.0001092,2]
[405308394,1770973834916,-2606.0,0.0001092,2]
[405308395,1770973834925,-500.0,0.0001092,2]
[405308396,1770973834934,-500.0,0.0001092,2]
[405308397,1770973834944,-500.0,0.0001092,2]
[405308398,1770973834952,-250.50360126,0.0001092,2]
[405308399,1770973834962,-16883.32,0.00010959,2]
[405308400,1770973834972,-341.62,0.00010959,2]
[405308401,1770973834981,-200.0,0.00010975,2]
[405308402,1770973834990,-2606.0,0.00010975,2]
[405308403,1770973835000,-500.0,0.00010975,2]
[405308404,1770973835009,-500.0,0.00010975,2]
[405308405,1770973835019,-200.0,0.0001103,2]
[405308406,1770973835033,-2606.0,0.0001103,2]
[405308407,1770973835044,-500.0,0.0001103,2]
[405308408,1770973835053,-500.0,0.0001103,2]
[405308409,1770973835062,-150.0,0.00011065,7]
[405308410,1770973835072,-2606.0,0.00011085,2]
[405308411,1770973835081,-500.0,0.00011085,2]
[405308412,1770973835090,-500.0,0.00011085,2]
[405308413,1770973835100,-45785.51588126,0.00011099,2]
[405308414,1770973835113,-72570.33881673,0.00011099,2]
[405308415,1770973835123,-2606.0,0.0001114,2]
[405308416,1770973835132,-500.0,0.0001114,2]
[405308417,1770973835142,-500.0,0.0001114,2]
[405308418,1770973835152,-2606.0,0.00011194,2]
[405308419,1770973835162,-500.0,0.00011194,2]
[405308420,1770973835171,-500.0,0.00011194,2]
[405308421,1770973835180,-11030.56,0.00011233,2]
[405308422,1770973835191,-2606.0,0.00011249,2]
[405308423,1770973835201,-500.0,0.00011249,2]
[405308424,1770973835210,-500.0,0.00011249,2]
[405308425,1770973835220,-2606.0,0.00011304,2]
[405308426,1770973835229,-500.0,0.00011304,2]
[405308427,1770973835238,-165.6695728,0.00011304,2]
[405308428,1770973835248,-2606.0,0.00011359,2]
[405308429,1770973835257,-500.0,0.00011359,2]
[405308430,1770973835267,-2606.0,0.00011414,2]
[405308431,1770973835276,-500.0,0.00011414,2]
[405308432,1770973835295,-341.62,0.00011416,2]
[405308433,1770973835306,-2606.0,0.00011468,2]
[405308434,1770973835316,-500.0,0.00011468,2]
[405308435,1770973835325,-2606.0,0.00011523,2]
[405308436,1770973835336,-500.0,0.00011523,2]
[405308437,1770973835346,-9035.0,0.0001156,2]
[405308438,1770973835356,-2606.0,0.00011578,2]
[405308439,1770973835366,-500.0,0.00011578,2]
[405308440,1770973835376,-3620.0,0.00011578,2]